bitfinex/quotes_ETHUSD_20250721
["timestamp","ask_amount","ask_price","bid_price","bid_amount"]
[1753083488575,0.90140001,3791.7,3791.6,2.69633722]
[1753083489501,0.90140001,3791.7,3791.6,2.637409]
[1753083491595,1.37050001,3791.7,3791.5,2.63747703]
[1753083491911,1.37050001,3791.7,3791.3,3.0]
[1753083491912,0.4691,3791.6,3791.3,3.0]
[1753083492291,0.77020001,3791.7,3791.2,5.63763209]
[1753083492468,0.4691,3791.5,3791.3,2.63761028]
[1753083493411,0.77020001,3791.7,3791.3,2.63761028]
[1753083493767,0.4691,3791.6,3791.3,2.63761028]
[1753083493963,0.1312,3791.3,3791.2,2.63767221]
[1753083494166,0.1312,3791.3,3791.1,3.001]
[1753083494812,0.1312,3791.3,3791.1,0.001]
[1753083495703,0.6003,3791.3,3791.1,0.001]
[1753083495913,0.7635,3791.2,3791.1,0.001]
[1753083497685,0.8734,3791.2,3791.1,0.001]
[1753083498103,0.7635,3791.2,3791.1,0.001]
[1753083499814,0.8734,3791.2,3791.1,0.001]
[1753083500113,0.7635,3791.2,3791.1,0.001]
[1753083501202,0.8734,3791.2,3791.1,0.001]
[1753083501678,3.51108727,3791.2,3791.1,0.001]
[1753083502119,0.8734,3791.2,3791.1,0.001]
[1753083503722,3.51108727,3791.2,3791.1,0.001]
[1753083504221,3.52098727,3791.2,3791.1,0.001]
[1753083507231,3.88018727,3791.2,3791.1,0.001]
[1753083507584,1.2425,3791.2,3791.1,0.001]
[1753083508021,0.7734,3791.2,3791.1,0.001]
[1753083509003,5.2625,3791.2,3791.1,0.001]
[1753083509798,7.90018727,3791.2,3791.1,0.001]
[1753083509998,5.2625,3791.2,3791.1,0.001]
[1753083513647,7.90018727,3791.2,3791.1,0.001]
[1753083516227,5.2625,3791.2,3791.1,0.001]
[1753083516438,1.2425,3791.2,3791.1,0.001]
[1753083516634,5.2625,3791.2,3791.1,0.001]
[1753083518955,7.90018727,3791.2,3791.1,0.001]
[1753083519247,4.7934,3791.2,3791.1,0.001]
[1753083520321,7.43108727,3791.2,3791.1,0.001]
[1753083521060,4.7934,3791.2,3791.1,0.001]
[1753083524164,4.02,3791.2,3791.1,0.001]
[1753083524772,4.02,3791.2,3791.1,3.08245685]
[1753083529470,4.02,3791.2,3791.1,3.65448639]
[1753083529674,4.02,3791.2,3791.1,1.01672954]
[1753083529875,4.02,3791.2,3791.1,3.65448639]
[1753083535074,4.02,3791.2,3791.1,2.63875685]
[1753083536103,4.02,3791.2,3791.1,0.001]
[1753083536276,4.8257,3791.2,3791.1,0.001]
[1753083538367,4.02,3791.2,3791.1,3.08245685]
[1753083540904,4.02,3791.2,3791.1,0.001]
[1753083542107,4.02,3791.2,3791.1,2.63875685]
[1753083543067,4.02,3791.2,3791.1,0.001]
[1753083543798,4.02,3791.2,3791.1,2.63875685]
[1753083544189,4.02,3791.2,3791.1,3.08245685]
[1753083545395,4.02,3791.2,3791.1,3.87115685]
[1753083545597,4.02,3791.2,3791.1,4.44319051]
[1753083545789,4.02,3791.2,3791.1,7.44319051]
[1753083547190,1e-08,3791.7,3791.4,3.45844813]
[1753083547392,4.017,3791.6,3791.5,2.63747857]
[1753083547611,4.017,3791.6,3791.5,3.55784187]
[1753083547821,4.017,3791.6,3791.5,4.00154187]
[1753083548085,4.017,3791.6,3791.5,7.00154187]
[1753083548891,4.017,3791.6,3791.5,7.13274187]
[1753083550096,4.017,3791.6,3791.5,7.90064187]
[1753083550722,4.017,3791.6,3791.5,7.76944187]
[1753083554986,4.017,3791.6,3791.5,6.08117857]
[1753083555140,4.017,3791.6,3791.5,3.0]
[1753083555340,4.017,3791.6,3791.5,5.63747857]
[1753083555578,4.1482,3791.6,3791.5,5.63747857]
[1753083555753,4.1482,3791.6,3791.1,0.001]
[1753083555948,0.1312,3791.4,3791.1,2.63875459]
[1753083556166,0.1312,3791.4,3791.1,3.11255459]
[1753083556369,0.1312,3791.4,3791.3,2.63760123]
[1753083557302,0.1312,3791.4,3791.3,3.11140123]
[1753083558945,0.1312,3791.4,3791.1,3.001]
[1753083559252,0.1312,3791.4,3791.2,2.63766229]
[1753083559982,0.1312,3791.4,3791.2,2.63767107]
[1753083560669,0.1312,3791.4,3791.3,2.6376177]
[1753083561037,0.1312,3791.4,3791.1,0.4748]
[1753083561579,0.1312,3791.4,3791.3,2.6376177]
[1753083561782,0.1312,3791.4,3791.1,3.4748]
[1753083562091,0.7575,3791.4,3791.1,0.001]
[1753083562275,0.1312,3791.2,3791.1,2.63874528]
[1753083562471,4.1462,3791.2,3791.1,2.63874528]
[1753083567765,4.1462,3791.2,3791.1,0.001]
[1753083568409,4.1462,3791.2,3791.1,2.63875685]
[1753083569504,4.1462,3791.2,3791.1,0.001]
[1753083571776,4.6175,3791.2,3791.1,0.001]
[1753083575532,4.1462,3791.2,3791.1,0.001]
[1753083576492,0.1312,3791.2,3791.1,0.001]
[1753083576692,4.1462,3791.2,3791.1,0.001]
[1753083578196,0.1312,3791.2,3791.1,0.001]
[1753083578557,4.1462,3791.2,3791.1,0.001]
[1753083578845,4.6175,3791.2,3791.1,0.001]
[1753083579396,0.1312,3791.2,3791.1,0.001]
[1753083579617,4.1462,3791.2,3791.1,0.001]
[1753083580340,6.78388727,3791.2,3791.1,0.001]
[1753083580633,4.1462,3791.2,3791.1,0.001]
[1753083580840,0.5905,3791.2,3791.1,0.001]
[1753083581011,4.6055,3791.2,3791.1,0.001]
[1753083581242,7.24318727,3791.2,3791.1,0.001]
[1753083581416,6.78388727,3791.2,3791.1,0.001]
[1753083581624,8.01078727,3791.2,3791.1,0.001]
[1753083586351,5.3731,3791.2,3791.1,0.001]
[1753083586647,4.9138,3791.2,3791.1,0.001]
[1753083587148,7.55048727,3791.2,3791.1,0.001]
[1753083587655,8.00978727,3791.2,3791.1,0.001]
[1753083588529,3.99578727,3791.2,3791.1,0.001]
[1753083588764,8.00978727,3791.2,3791.1,0.001]
[1753083589617,7.55048727,3791.2,3791.1,0.001]
[1753083590220,4.9128,3791.2,3791.1,0.001]
[1753083590519,7.55048727,3791.2,3791.1,0.001]
[1753083590954,2.63776188,3791.1,3790.7,0.05977272]
[1753083591134,4.014,3791.0,3790.7,2.63800537]
[1753083591315,0.1312,3790.7,3790.6,2.63907658]
[1753083591522,4.1452,3790.7,3790.6,0.001]
[1753083591707,0.1312,3790.7,3790.6,2.63910478]
[1753083591904,4.1452,3790.7,3790.6,2.63910478]
[1753083592613,4.1452,3790.7,3790.6,3.43160478]
[1753083592812,4.1452,3790.7,3790.6,4.49518385]
[1753083597466,4.1452,3790.7,3790.6,3.88810478]
[1753083601166,0.1312,3790.7,3790.6,3.88810478]
[1753083602930,4.014,3790.9,3790.8,2.6379656]
[1753083603320,0.75350001,3791.7,3791.5,2.63746403]
[1753083603520,4.1452,3791.3,3791.2,2.63762565]
[1753083603743,4.1452,3791.3,3791.2,3.09412565]
[1753083604662,4.1452,3791.3,3791.2,2.63768727]
[1753083607170,4.1452,3791.3,3791.2,3.09418727]
[1753083608068,4.1452,3791.3,3791.2,2.63768727]
[1753083609678,4.1452,3791.3,3791.2,3.09418727]
[1753083610271,4.1452,3791.3,3791.2,2.63768727]
[1753083610769,4.1452,3791.3,3791.2,3.10008727]
[1753083613351,4.1452,3791.3,3791.2,3.75600281]
[1753083614065,0.13120001,3791.7,3791.6,2.637409]
[1753083614392,4.14420001,3791.7,3791.6,2.637409]
[1753083614755,4.14420001,3791.7,3791.6,3.099809]
[1753083616509,4.14420001,3791.7,3791.6,3.870109]
[1753083616793,4.14320001,3791.7,3791.6,4.52086882]
[1753083617365,4.01200001,3791.7,3791.6,4.52086882]
[1753083620567,1e-08,3791.7,3791.6,4.52086882]
[1753083621095,1e-08,3791.7,3791.6,14.21490572]
[1753083624465,1e-08,3791.7,3791.6,18.22590572]
[1753083625568,1e-08,3791.7,3791.6,7.65206882]
[1753083628006,1e-08,3791.7,3791.6,5.768609]
[1753083628173,1e-08,3791.7,3791.6,5.637409]
[1753083628998,0.44850001,3791.7,3791.6,5.637409]
[1753083630071,0.44850001,3791.7,3791.2,0.5936]
[1753083630404,0.4485,3791.6,3791.4,2.63752218]
[1753083630611,0.1312,3791.4,3791.1,0.001]
[1753083630770,0.8999,3791.4,3791.1,0.001]
[1753083631104,0.4485,3791.3,3791.1,2.63875054]
[1753083631603,0.4485,3791.3,3791.2,2.63768727]
[1753083633377,0.4485,3791.3,3791.1,0.001]
[1753083633378,0.4485,3791.3,3791.1,2.63875275]
[1753083633708,0.4485,3791.3,3791.2,2.63768727]
[1753083635011,4.9109,3791.4,3791.3,2.6376177]
[1753083636281,4.1422,3791.4,3791.3,2.6376177]
[1753083637399,0.1312,3791.4,3791.3,2.6376177]
[1753083637614,4.1422,3791.4,3791.3,2.6376177]
[1753083640525,0.1312,3791.4,3791.3,2.6376177]
[1753083640718,4.1422,3791.4,3791.3,2.6376177]
[1753083641086,1e-08,3791.7,3791.6,2.637409]
[1753083641287,0.13120001,3791.7,3791.6,3.093709]
[1753083641506,4.14220001,3791.7,3791.6,3.093709]
[1753083641814,4.14220001,3791.7,3791.6,2.637409]
[1753083646439,0.13120001,3791.7,3791.6,3.429209]
[1753083646722,4.01000001,3791.7,3791.6,5.65721164]
[1753083646924,4.01000001,3791.7,3791.6,4.86541164]
[1753083647424,4.01000001,3791.7,3791.6,2.637409]
[1753083649552,0.788,3791.6,3791.1,0.001]
[1753083649841,0.1312,3791.4,3791.3,5.6376177]
[1753083650052,0.6038,3791.4,3791.3,2.6376177]
[1753083650924,0.1312,3791.4,3791.3,2.6376177]
[1753083652162,0.8312,3791.4,3791.3,2.6376177]
[1753083652861,1.3038,3791.4,3791.3,2.6376177]
[1753083654857,0.8312,3791.4,3791.3,2.6376177]
[1753083655033,0.7,3791.4,3791.3,3.68022879]
[1753083655436,0.1312,3791.6,3791.5,2.63747857]
[1753083655949,0.1312,3791.6,3791.5,3.09377857]
[1753083656981,0.1312,3791.6,3791.5,6.09377857]
[1753083657289,4.01000001,3791.7,3791.6,3.444509]
[1753083657647,4.01000001,3791.7,3791.6,3.900809]
[1753083658056,4.01000001,3791.7,3791.6,9.9136459]
[1753083658461,1e-08,3791.7,3791.6,12.9136459]
[1753083661984,1e-08,3791.7,3791.1,2.63869859]
[1753083661985,0.60380001,3791.7,3791.4,2.63750491]
[1753083662185,0.13120001,3791.7,3791.4,2.63749679]
[1753083662346,0.9538,3791.5,3791.4,5.63749679]
[1753083662549,5.4354,3791.5,3791.4,5.63749679]
[1753083664395,4.1402,3791.5,3791.4,5.63749679]
[1753083666683,4.1402,3791.5,3791.4,2.63749679]
[1753083666876,4.6128,3791.5,3791.4,2.63749679]
[1753083667611,4.6128,3791.5,3791.3,2.63761031]
[1753083667776,4.1402,3791.5,3791.4,2.63754813]
[1753083668414,4.6128,3791.5,3791.4,2.63754813]
[1753083669521,4.1402,3791.5,3791.1,0.001]
[1753083669730,0.1312,3791.2,3791.1,2.63875685]
[1753083669882,4.6128,3791.2,3791.1,2.63875685]
[1753083670390,4.6128,3791.2,3791.1,0.001]
[1753083670992,8.06428727,3791.2,3791.1,0.001]
[1753083682332,11.06428727,3791.2,3791.1,0.001]
[1753083684028,11.20173683,3791.2,3791.1,0.001]
[1753083684729,3.41143519,3790.7,3790.6,0.001]
[1753083684936,13.43327209,3790.7,3790.6,0.001]
[1753083685227,16.90807209,3790.7,3790.6,0.001]
[1753083687445,23.23707209,3790.7,3790.6,0.001]
[1753083687646,13.21523519,3790.7,3790.6,0.001]
[1753083687949,17.22423519,3790.7,3790.6,0.001]
[1753083690261,2.63852242,3790.0,3789.9,0.001]
[1753083690460,7.47862242,3790.0,3789.9,0.001]
[1753083690761,7.95342242,3790.0,3789.9,0.001]
[1753083692647,7.47862242,3790.0,3789.9,0.001]
[1753083693445,7.95342242,3790.0,3789.9,0.001]
[1753083693749,3.94442242,3790.0,3789.9,0.001]
[1753083693955,7.95342242,3790.0,3789.9,0.001]
[1753083695450,4.8401,3790.0,3789.9,0.001]
[1753083695649,4.009,3790.0,3789.9,0.001]
[1753083696256,6.64752242,3790.0,3789.9,0.001]
[1753083697169,4.009,3790.0,3789.9,0.001]
[1753083697374,6.64752242,3790.0,3789.9,0.001]
[1753083697738,7.12232242,3790.0,3789.9,0.001]
[1753083704089,6.64752242,3790.0,3789.9,0.001]
[1753083705388,7.11932242,3790.0,3789.9,0.001]
[1753083708288,6.64752242,3790.0,3789.9,0.001]
[1753083710914,4.009,3790.0,3789.9,0.001]
[1753083711224,4.009,3790.0,3789.9,0.4402]
[1753083712536,6.64752242,3790.0,3789.9,0.4402]
[1753083713225,6.64752242,3790.0,3789.9,0.001]
[1753083715327,7.44132242,3790.0,3789.9,0.001]
[1753083715501,7.91312242,3790.0,3789.9,0.001]
[1753083716707,7.91512242,3790.0,3789.9,0.001]
[1753083720350,10.91512242,3790.0,3789.9,0.001]
[1753083721053,10.91512242,3790.0,3789.9,1e-08]
[1753083722261,5.63859204,3789.9,3789.8,1e-08]
[1753083722435,14.69959204,3789.9,3789.8,1e-08]
[1753083723662,14.89543277,3789.9,3789.8,1e-08]
[1753083727561,14.69959204,3789.9,3789.8,1e-08]
[1753083730155,2.63900984,3789.3,3789.2,0.001]
[1753083730359,18.22740984,3789.3,3789.2,0.001]
[1753083730672,18.69350984,3789.3,3789.2,1e-08]
[1753083731872,3.55067948,3789.2,3789.1,1e-08]
[1753083732046,10.02961638,3789.2,3789.1,1e-08]
[1753083732547,13.02961638,3789.2,3789.1,1e-08]
[1753083735581,15.80561638,3789.2,3789.1,1e-08]
[1753083735943,23.60561638,3789.2,3789.1,1e-08]
[1753083736747,20.82961638,3789.2,3789.1,1e-08]
[1753083737150,20.36351638,3789.2,3789.1,1e-08]
[1753083737476,24.83861638,3789.2,3789.1,1e-08]
[1753083737784,20.36351638,3789.2,3789.1,1e-08]
[1753083737957,18.35967948,3789.2,3789.1,1e-08]
[1753083738577,14.35067948,3789.2,3789.1,1e-08]
[1753083738757,17.57827948,3789.2,3789.1,1e-08]
[1753083738963,24.41621638,3789.2,3789.1,1e-08]
[1753083739168,24.88231638,3789.2,3789.1,1e-08]
[1753083741379,25.01985109,3789.2,3789.1,1e-08]
[1753083741683,24.55375109,3789.2,3789.1,1e-08]
[1753083741855,25.01985109,3789.2,3789.1,1e-08]
[1753083746172,24.55375109,3789.2,3789.1,1e-08]
[1753083746604,25.01985109,3789.2,3789.1,1e-08]
[1753083748951,24.55375109,3789.2,3789.1,1e-08]
[1753083749655,25.01985109,3789.2,3789.1,1e-08]
[1753083751077,25.01985109,3789.2,3788.6,0.001]
[1753083751078,2.63921879,3789.0,3788.6,0.001]
[1753083751385,2.63942777,3788.7,3788.6,0.001]
[1753083751604,6.64742777,3788.7,3788.6,0.08347767]
[1753083752172,4.008,3788.7,3788.6,0.08347767]
[1753083752373,6.64742777,3788.7,3788.6,1.37327767]
[1753083752555,4.008,3788.7,3788.6,1.37327767]
[1753083756291,6.64742777,3788.7,3788.6,0.08347767]
[1753083756456,4.008,3788.7,3788.6,0.55127767]
[1753083756656,4.008,3788.7,3788.6,1.31227092]
[1753083756964,6.334,3788.8,3788.7,0.828]
[1753083757184,10.342,3788.8,3788.7,1.37827092]
[1753083757368,12.9813581,3788.8,3788.7,1.37827092]
[1753083757574,12.9813581,3788.8,3788.7,0.91047092]
[1753083757770,12.9813581,3788.8,3788.7,0.08247092]
[1753083758380,12.9813581,3788.8,3788.7,1.35467092]
[1753083762306,12.9813581,3788.8,3788.7,1.35466901]
[1753083765121,10.342,3788.8,3788.7,1.35466901]
[1753083766202,12.9813581,3788.8,3788.7,1.35466901]
[1753083770831,12.9813581,3788.8,3788.7,1.35466889]
[1753083771196,10.342,3788.8,3788.7,1.35466889]
[1753083774032,10.342,3788.8,3788.7,1.35466561]
[1753083775000,12.9813581,3788.8,3788.7,1.35466561]
[1753083775420,12.9813581,3788.8,3788.7,0.88686561]
[1753083776114,12.9813581,3788.8,3788.7,1.34126561]
[1753083776667,12.9813581,3788.8,3788.7,0.08246561]
[1753083778117,19.432795,3788.8,3788.7,0.08246561]
[1753083779107,12.9813581,3788.8,3788.7,0.08246561]
[1753083780607,12.9813581,3788.8,3788.7,0.53686561]
[1753083780804,10.342,3788.8,3788.7,0.08246561]
[1753083781005,10.342,3788.8,3788.7,0.53686561]
[1753083781419,10.342,3788.8,3788.7,0.53686796]
[1753083783043,10.342,3788.8,3788.7,0.53686787]
[1753083783828,10.342,3788.8,3788.7,0.08246787]
[1753083784028,12.9813581,3788.8,3788.7,0.08246787]
[1753083786681,12.9813581,3788.8,3788.7,0.08246926]
[1753083790551,13.4535581,3788.8,3788.7,0.08246926]
[1753083790757,2.63970646,3788.3,3788.2,0.04832505]
[1753083790954,6.64570646,3788.3,3788.2,0.04832505]
[1753083792317,7.11790646,3788.3,3788.2,0.04832505]
[1753083793715,7.86790646,3788.3,3788.2,0.04832505]
[1753083795353,7.86790646,3788.3,3787.4,1.1973]
[1753083795354,2.63977614,3788.2,3787.4,0.7697]
[1753083795588,6.24317614,3788.2,3787.2,0.753]
[1753083795746,6.24317614,3788.2,3787.2,1.1806]
[1753083796185,6.24317614,3788.2,3787.3,0.4276]
[1753083796690,6.24317614,3788.2,3787.4,0.4276]
[1753083797681,6.24317614,3788.2,3787.2,0.753]
[1753083797881,6.24317614,3788.2,3787.2,1.1806]
[1753083798085,6.24317614,3788.2,3787.3,0.4276]
[1753083798864,6.24317614,3788.2,3787.6,0.4276]
[1753083799790,9.77797614,3788.2,3787.7,0.4276]
[1753083801391,10.25017614,3788.2,3787.7,0.4276]
[1753083802774,10.25017614,3788.2,3788.1,0.12249029]
[1753083802988,10.25017614,3788.2,3788.1,0.12349029]
[1753083803157,6.24317614,3788.2,3788.1,0.12349029]
[1753083803356,10.25017614,3788.2,3788.1,0.12349029]
[1753083804988,6.24317614,3788.2,3788.1,0.12349029]
[1753083805194,10.24917614,3788.2,3788.1,0.12349029]
[1753083805382,9.77697614,3788.2,3788.1,0.12349029]
[1753083805892,5.77097614,3788.2,3788.1,0.12349029]
[1753083806068,2.77097614,3788.2,3788.1,0.12349029]
[1753083806273,6.77797614,3788.2,3788.1,0.55109029]
[1753083806792,6.77797614,3788.2,3788.1,0.55108364]
[1753083807592,6.77697614,3788.2,3788.1,0.55108364]
[1753083808479,2.77097614,3788.2,3788.1,0.55108364]
[1753083808797,6.77697614,3788.2,3788.1,0.55108364]
[1753083809898,6.77697614,3788.2,3788.1,0.12348364]
[1753083810469,2.77097614,3788.2,3788.1,0.12348364]
[1753083810669,6.77697614,3788.2,3788.1,0.12348364]
[1753083812077,0.1312,3788.2,3788.1,0.12348364]
[1753083812282,6.77697614,3788.2,3788.1,0.55108364]
[1753083812694,4.1372,3788.2,3788.1,0.55108364]
[1753083813583,4.1372,3788.2,3788.1,1.33448364]
[1753083814667,0.1312,3788.2,3788.1,1.33448364]
[1753083815205,4.1372,3788.2,3788.1,1.33448364]
[1753083815597,0.1312,3788.2,3788.1,1.33448364]
[1753083815796,4.1372,3788.2,3788.1,1.33448364]
[1753083816269,0.1312,3788.2,3788.1,1.33448364]
[1753083816477,4.1372,3788.2,3788.1,0.55108364]
[1753083820816,0.1312,3788.2,3788.1,0.55108364]
[1753083821016,4.1372,3788.2,3788.1,0.55108364]
[1753083822014,0.1312,3788.2,3788.1,0.55108364]
[1753083822316,4.1372,3788.2,3788.1,0.55108364]
[1753083822889,6.77697614,3788.2,3788.1,0.12348364]
[1753083823109,7.21857614,3788.2,3788.1,0.12348364]
[1753083823407,6.77697614,3788.2,3788.1,0.12348364]
[1753083824013,8.00727614,3788.2,3788.1,0.12348364]
[1753083826394,7.56567614,3788.2,3788.1,0.12348364]
[1753083826800,8.00727614,3788.2,3788.1,0.12348364]
[1753083827486,7.56567614,3788.2,3788.1,0.12348364]
[1753083829411,6.77697614,3788.2,3788.1,0.12348364]
[1753083829800,0.1312,3788.2,3788.1,0.12348364]
[1753083830001,4.1362,3788.2,3788.1,0.55718364]
[1753083830910,10.4702,3788.2,3788.1,0.55718364]
[1753083831284,6.4652,3788.2,3788.1,0.55718364]
[1753083831504,10.4702,3788.2,3788.1,0.55718364]
[1753083832183,6.4652,3788.2,3788.1,0.55718364]
[1753083832386,10.4702,3788.2,3788.1,0.55718364]
[1753083832584,10.4702,3788.2,3788.1,1.31588364]
[1753083833015,6.4652,3788.2,3788.1,1.31588364]
[1753083833222,10.4702,3788.2,3788.1,1.31588364]
[1753083834129,6.4652,3788.2,3788.1,1.31588364]
[1753083834440,10.4702,3788.2,3788.1,1.31588364]
[1753083835010,6.4652,3788.2,3788.1,1.31588364]
[1753083835211,10.4702,3788.2,3788.1,1.31588364]
[1753083836943,6.4652,3788.2,3788.1,1.31588364]
[1753083837145,10.4702,3788.2,3788.1,1.31588364]
[1753083839050,10.4702,3788.2,3788.1,1.31587797]
[1753083839349,10.4702,3788.2,3788.1,0.55717797]
[1753083839723,6.4652,3788.2,3788.1,3.1970238]
[1753083839926,10.4702,3788.2,3788.1,4.6861388]
[1753083840717,10.4702,3788.2,3788.1,4.0241238]
[1753083842756,6.4652,3788.2,3788.1,4.0241238]
[1753083842932,10.4702,3788.2,3788.1,4.0241238]
[1753083843632,10.4702,3788.2,3788.1,0.12347797]
[1753083845544,10.4702,3788.2,3788.1,0.123477]
[1753083847357,10.4722,3788.2,3788.1,0.123477]
[1753083849243,13.11197614,3788.2,3788.1,0.123477]
[1753083849836,10.4722,3788.2,3788.1,0.123477]
[1753083850233,10.4712,3788.2,3788.1,0.585677]
[1753083850455,10.4712,3788.2,3788.1,1.356677]
[1753083850947,6.4672,3788.2,3788.1,1.356677]
[1753083851258,10.4712,3788.2,3788.1,1.356677]
[1753083851460,10.4712,3788.2,3788.1,1.35667313]
[1753083852456,10.4712,3788.2,3788.1,3.99651896]
[1753083853041,10.4712,3788.2,3788.1,1.35667313]
[1753083854858,6.4672,3788.2,3788.1,1.35667313]
[1753083855162,10.4712,3788.2,3788.1,1.35667313]
[1753083856265,10.4712,3788.2,3788.1,1.35667214]
[1753083856860,10.4712,3788.2,3788.1,3.99651797]
[1753083857054,10.4712,3788.2,3788.1,4.66026696]
[1753083859166,10.4712,3788.2,3788.1,1.35667214]
[1753083859671,6.4672,3788.2,3788.1,3.99651797]
[1753083859837,10.4712,3788.2,3788.1,3.99651797]
[1753083860462,10.4712,3788.2,3788.1,1.35667214]
[1753083860632,10.4712,3788.2,3788.1,3.99651797]
[1753083861233,10.4712,3788.2,3788.1,1.35667214]
[1753083861782,10.4712,3788.2,3788.1,3.99651797]
[1753083862363,10.4712,3788.2,3788.1,1.35667214]
[1753083862570,10.4712,3788.2,3788.1,3.99651797]
[1753083863095,10.4712,3788.2,3788.1,4.66026684]
[1753083863980,6.4672,3788.2,3788.1,4.66026684]
[1753083864167,10.4702,3788.2,3788.1,4.66026684]
[1753083864363,10.4702,3788.2,3788.1,3.99651797]
[1753083866487,10.4702,3788.2,3788.1,1.35667214]
[1753083866985,10.4702,3788.2,3788.1,3.99651797]
[1753083867962,10.4702,3788.2,3788.1,1.35667214]
[1753083868652,10.4702,3788.2,3788.1,3.99651797]
[1753083870036,10.4702,3788.2,3788.1,1.35667214]
[1753083871479,10.4702,3788.2,3788.1,3.99651797]
[1753083873195,10.4702,3788.2,3788.1,3.99651797]
[1753083873978,4.1362,3788.2,3788.1,4.66026538]
[1753083874184,4.1362,3788.2,3788.1,4.66026535]
[1753083876907,4.005,3788.2,3788.1,4.66026535]
[1753083877206,4.004,3788.2,3788.1,4.66026535]
[1753083877573,4.004,3788.2,3788.1,4.57779539]
[1753083877768,6.334,3788.6,3788.1,7.70899539]
[1753083878004,6.334,3788.6,3788.5,6.42686711]
[1753083878210,10.336,3788.6,3788.5,6.88906711]
[1753083879609,10.336,3788.6,3788.5,6.97151842]
[1753083880781,6.334,3788.6,3788.5,6.97151842]
[1753083881003,10.336,3788.6,3788.5,6.97151842]
[1753083881196,10.336,3788.6,3788.5,9.00104395]
[1753083882573,7.43947134,3788.6,3788.5,9.00104395]
[1753083882770,1e-08,3788.6,3788.5,9.00104395]
[1753083885292,1e-08,3788.6,3788.5,9.00104656]
[1753083886024,1e-08,3788.6,3788.5,7.75154656]
[1753083886220,1e-08,3788.6,3788.5,5.72202103]
[1753083887291,1e-08,3788.6,3788.5,2.72202103]
[1753083887919,1e-08,3788.6,3788.5,0.08245392]
[1753083887920,0.45820001,3788.6,3788.5,0.08245392]
[1753083888122,0.45820001,3788.6,3788.5,0.08246111]
[1753083890847,0.45820001,3788.6,3788.5,2.72202822]
[1753083891011,1e-08,3788.6,3788.5,2.72202822]
[1753083891540,0.00200001,3788.6,3788.5,2.72202822]
[1753083891711,0.00200001,3788.6,3788.5,3.30191604]
[1753083892119,0.00200001,3788.6,3788.5,2.72202822]
[1753083894519,0.00200001,3788.6,3788.5,0.08246111]
[1753083895153,0.00200001,3788.6,3788.5,2.72202822]
[1753083898530,0.13320001,3788.6,3788.5,2.72202822]
[1753083898729,0.13320001,3788.6,3788.5,3.15922822]
[1753083898932,0.13320001,3788.6,3788.5,3.73912126]
[1753083899131,0.13320001,3788.6,3788.5,3.30192126]
[1753083900333,0.13320001,3788.6,3788.5,2.72202822]
[1753083900531,0.13320001,3788.6,3788.5,0.08246111]
[1753083900724,1.40520001,3788.6,3788.5,0.08246111]
[1753083901341,0.13320001,3788.6,3788.5,2.72203138]
[1753083901541,0.13320001,3788.6,3788.5,3.15923138]
[1753083901747,0.13320001,3788.6,3788.5,3.81491971]
[1753083902154,4.1342,3788.6,3788.5,3.81491971]
[1753083902570,0.1332,3788.6,3788.5,3.81491971]
[1753083902737,4.1342,3788.6,3788.5,3.81491971]
[1753083904355,0.1332,3788.6,3788.5,3.81491971]
[1753083904555,4.003,3788.6,3788.5,3.81491971]
[1753083907093,4.003,3788.6,3788.5,3.73245544]
[1753083907293,4.003,3788.6,3788.5,3.81490889]
[1753083907446,4.003,3788.6,3788.5,3.37770889]
[1753083910086,4.003,3788.6,3788.5,3.37771237]
[1753083910583,4.1342,3788.6,3788.5,3.37771237]
[1753083912699,4.1342,3788.6,3788.5,3.37871237]
[1753083914293,4.1342,3788.6,3788.5,0.73914526]
[1753083914589,4.1342,3788.6,3788.5,2.72302404]
[1753083916060,4.1342,3788.6,3788.5,2.64056711]
[1753083917795,4.1342,3788.6,3788.5,3.08756711]
[1753083919072,0.002,3788.6,3788.5,6.87706278]
[1753083919288,4.002,3788.6,3788.5,6.85066711]
[1753083919490,4.002,3788.6,3788.5,8.41410736]
[1753083921180,0.002,3788.6,3788.5,8.41410736]
[1753083921480,4.002,3788.6,3788.5,8.54530736]
[1753083921685,0.002,3788.6,3788.5,8.54530736]
[1753083921917,4.002,3788.6,3788.5,8.54530736]
[1753083923523,1e-08,3788.6,3788.5,8.54530736]
[1753083923723,1e-08,3788.6,3788.5,9.09530736]
[1753083924286,1e-08,3788.6,3788.5,8.54530736]
[1753083924898,1e-08,3788.6,3788.5,8.09830736]
[1753083925096,1e-08,3788.6,3788.5,8.54530736]
[1753083936155,1e-08,3788.6,3788.5,5.90474025]
[1753083936356,1e-08,3788.6,3788.5,6.98086711]
[1753083942748,1e-08,3788.6,3788.5,7.53086711]
[1753083947383,0.002,3789.0,3788.9,2.63928844]
[1753083947678,0.002,3789.0,3788.9,6.88688132]
[1753083947985,1e-08,3789.1,3789.0,2.63921879]
[1753083948191,1e-08,3789.1,3789.0,6.39081879]
[1753083948352,1e-08,3789.1,3789.0,6.82141879]
[1753083948687,0.002,3789.9,3789.8,6.39026167]
[1753083948984,1e-08,3789.9,3789.8,6.39026167]
[1753083949185,1e-08,3789.9,3789.8,8.98862605]
[1753083949387,1e-08,3789.9,3789.8,9.11982605]
[1753083950601,1e-08,3789.9,3789.8,7.93762605]
[1753083950760,0.42940001,3789.9,3789.8,5.63866167]
[1753083950963,1.21410001,3789.9,3789.5,2.63884616]
[1753083951179,0.4294,3789.8,3789.4,0.13296468]
[1753083951379,0.1312,3789.7,3789.5,2.63882562]
[1753083951561,0.4294,3789.6,3789.5,5.63882562]
[1753083951966,0.4294,3789.6,3789.5,3.0]
[1753083952183,0.4294,3789.6,3789.5,5.63887056]
[1753083953896,0.4294,3789.6,3789.5,3.0]
[1753083955509,0.78470001,3789.9,3789.5,3.0]
[1753083955714,0.4294,3789.6,3789.5,3.0]
[1753083956282,0.4294,3789.6,3789.5,5.63887056]
[1753083956591,0.4294,3789.6,3789.5,3.0]